fUSD/lending_fUSD_20250616
["ID","MTS","AMOUNT","RATE_DAILY","PERIOD"]
[366083046,1750055452126,-490.0,0.00016438,2]
[366083047,1750055452135,-490.0,0.00016438,2]
[366083048,1750055452146,-490.0,0.00016438,2]
[366083049,1750055452156,-448.78937037,0.00016438,2]
[366083050,1750055452165,-1483.43,0.00016438,2]
[366083051,1750055452175,-490.0,0.00016438,2]
[366083052,1750055452184,-490.0,0.00016438,2]
[366083053,1750055452194,-155.84472599,0.00016438,2]
[366083054,1750055452203,-490.0,0.00016438,2]
[366083055,1750055452213,-490.0,0.00016438,2]
[366083056,1750055452223,-490.0,0.00016438,2]
[366083057,1750055452233,-736.05,0.00016438,2]
[366083058,1750055452244,-1776.51,0.00016438,2]
[366083059,1750055452255,-151.0,0.00016438,2]
[366083060,1750055452264,-608.86,0.00016438,2]
[366083061,1750055452274,-151.0,0.00016438,2]
[366083062,1750055452283,-151.0,0.00016438,2]
[366083063,1750055452293,-151.0,0.00016438,2]
[366083064,1750055452302,-496.53153022,0.00016438,2]
[366083065,1750055452311,-151.0,0.00016438,2]
[366083066,1750055452321,-983.55,0.00016438,2]
[366083067,1750055452330,-778.03,0.00016438,2]
[366083068,1750055452339,-490.0,0.00016438,2]
[366083069,1750055452349,-295.768891,0.00016438,2]
[366083070,1750055452358,-490.0,0.00016438,2]
[366083071,1750055452367,-490.0,0.00016438,2]
[366083072,1750055452376,-490.0,0.00016438,2]
[366083073,1750055452385,-1719.55,0.00016438,2]
[366083074,1750055452395,-490.0,0.00016438,2]
[366083075,1750055452404,-492.6976837,0.00016438,2]
[366083076,1750055452413,-492.12463328,0.00016438,2]
[366083077,1750055452422,-535.55,0.00016438,2]
[366083078,1750055452432,-490.0,0.00016438,2]
[366083079,1750055452441,-490.0,0.00016438,2]
[366083080,1750055452451,-1538.98,0.00016438,2]
[366083081,1750055452460,-1038.64,0.00016438,2]
[366083082,1750055452469,-490.0,0.00016438,2]
[366083083,1750055452478,-2295.74,0.00016438,2]
[366083084,1750055452487,-490.0,0.00016438,2]
[366083085,1750055452496,-628.03,0.00016438,2]
[366083086,1750055452506,-490.0,0.00016438,2]
[366083087,1750055452515,-490.0,0.00016438,2]
[366083088,1750055452525,-491.61421946,0.00016438,2]
[366083089,1750055452534,-493.5353936,0.00016438,2]
[366083090,1750055452544,-4484.81,0.00016438,2]
[366083091,1750055452554,-1362.42,0.00016438,2]
[366083092,1750055452563,-817.07,0.00016438,2]
[366083093,1750055452572,-2073.15,0.00016438,2]
[366083094,1750055452582,-151.0,0.00016438,2]
[366083095,1750055452591,-548.43,0.00016438,2]
[366083096,1750055452600,-151.0,0.00016438,2]
[366083097,1750055452609,-1517.04,0.00016438,2]
[366083098,1750055452619,-151.0,0.00016438,2]
[366083099,1750055452628,-151.0,0.00016438,2]
[366083100,1750055452637,-650.92,0.00016438,2]
[366083101,1750055452647,-151.0,0.00016438,2]
[366083102,1750055452656,-9848.27,0.00016438,2]
[366083103,1750055452666,-490.0,0.00016438,2]
[366083104,1750055452675,-151.0,0.00016438,2]
[366083105,1750055452684,-151.0,0.00016438,2]
[366083106,1750055452693,-281.834471,0.00016438,2]
[366083107,1750055452706,-151.0,0.00016438,2]
[366083108,1750055452716,-258.469195,0.00016438,2]
[366083109,1750055452725,-493.67045002,0.00016438,2]
[366083110,1750055452735,-2058.26,0.00016438,2]
[366083111,1750055452746,-2008.12,0.00016438,2]
[366083112,1750055452755,-786.41,0.00016438,2]
[366083113,1750055452766,-440.0,0.00016438,2]
[366083114,1750055452776,-490.0,0.00016438,2]
[366083115,1750055452786,-1052.3,0.00016438,2]
[366083116,1750055452796,-491.74115082,0.00016438,2]
[366083117,1750055452806,-647.77,0.00016438,2]
[366083118,1750055452815,-490.0,0.00016438,2]
[366083119,1750055452825,-490.0,0.00016438,2]
[366083120,1750055452834,-492.6169623,0.00016438,2]
[366083121,1750055452843,-490.0,0.00016438,2]
[366083122,1750055452853,-490.0,0.00016438,2]
[366083123,1750055452863,-1947.4,0.00016438,2]
[366083124,1750055452872,-3404.65,0.00016438,2]
[366083125,1750055452882,-1267.31,0.00016438,2]
[366083126,1750055452891,-490.0,0.00016438,2]
[366083127,1750055452901,-622.74887609,0.00016438,2]
[366083128,1750055452911,-1351.27,0.00016438,2]
[366083129,1750055452921,-490.0,0.00016438,2]
[366083130,1750055452931,-617.99,0.00016438,2]
[366083131,1750055452941,-2732.07,0.00016438,2]
[366083132,1750055452950,-610.06,0.00016438,2]
[366083133,1750055452960,-490.0,0.00016438,2]
[366083134,1750055452970,-490.0,0.00016438,2]
[366083135,1750055452980,-7109.51,0.00016438,2]
[366083136,1750055452990,-460.0,0.00016438,2]
[366083137,1750055453001,-515.62,0.00016438,2]
[366083138,1750055453011,-1079.75,0.00016438,2]
[366083139,1750055453021,-470.0,0.00016438,2]
[366083140,1750055453031,-1593.19,0.00016438,2]
[366083141,1750055453040,-497.57872202,0.00016438,2]
[366083142,1750055453050,-507.3207303,0.00016438,2]
[366083143,1750055453059,-490.0,0.00016438,2]
[366083144,1750055453068,-557.48,0.00016438,2]
[366083145,1750055453078,-491.5898332,0.00016438,2]
[366083146,1750055453088,-490.0,0.00016438,2]
[366083147,1750055453098,-490.0,0.00016438,2]
[366083148,1750055453107,-490.0,0.00016438,2]
[366083149,1750055453116,-632.65,0.00016438,2]
[366083150,1750055453126,-4854.04,0.00016438,2]
[366083151,1750055453135,-199.316594,0.00016438,2]
[366083152,1750055453145,-481.24287783,0.00016438,2]
[366083153,1750055453155,-199.316594,0.00016438,2]
[366083154,1750055453164,-1205.45,0.00016438,2]
[366083155,1750055453175,-199.316594,0.00016438,2]
[366083156,1750055453185,-504.50713082,0.00016438,2]
[366083157,1750055453194,-1523.99,0.00016438,2]
[366083158,1750055453203,-490.0,0.00016438,2]
[366083159,1750055453212,-490.0,0.00016438,2]
[366083160,1750055453222,-4757.28,0.00016438,2]
[366083161,1750055453232,-199.316594,0.00016438,2]
[366083162,1750055453241,-490.0,0.00016438,2]
[366083163,1750055453252,-199.316594,0.00016438,2]
[366083164,1750055453262,-580.96,0.00016438,2]
[366083165,1750055453272,-164.15426659,0.00016438,2]
[366083166,1750055453281,-227.625089,0.00016438,2]
[366083167,1750055453291,-199.316594,0.00016438,2]
[366083168,1750055453300,-199.316594,0.00016438,2]
[366083169,1750055453309,-1641.92,0.00016438,2]
[366083170,1750055453319,-199.316594,0.00016438,2]
[366083171,1750055453329,-199.316594,0.00016438,2]
[366083172,1750055453339,-199.316594,0.00016438,2]
[366083173,1750055453348,-538.98,0.00016438,2]
[366083174,1750055453358,-720.76,0.00016438,2]
[366083175,1750055453367,-490.0,0.00016438,2]
[366083176,1750055453377,-151.0,0.00016438,2]
[366083177,1750055453387,-151.0,0.00016438,2]
[366083178,1750055453397,-151.0,0.00016438,2]
[366083179,1750055453406,-151.0,0.00016438,2]
[366083180,1750055453415,-1699.38,0.00016438,2]
[366083181,1750055453424,-10622.48,0.00016438,2]
[366083182,1750055453434,-626.64680467,0.00016438,2]
[366083183,1750055453443,-613.25,0.00016438,2]
[366083184,1750055453453,-2647.76,0.00016438,2]
[366083185,1750055453463,-151.0,0.00016438,2]
[366083186,1750055453472,-500.0,0.00016438,2]
[366083187,1750055453481,-206.07629,0.00016438,2]
[366083188,1750055453491,-206.07629,0.00016438,2]
[366083189,1750055453502,-500.0,0.00016438,2]
[366083190,1750055453512,-151.0,0.00016438,2]
[366083191,1750055453523,-206.07629,0.00016438,2]
[366083192,1750055453532,-151.0,0.00016438,2]
[366083193,1750055453541,-500.0,0.00016438,2]
[366083194,1750055453551,-151.0,0.00016438,2]
[366083195,1750055453560,-206.07629,0.00016438,2]
[366083196,1750055453570,-1131.79,0.00016438,2]
[366083197,1750055453579,-206.07629,0.00016438,2]
[366083198,1750055453589,-490.0,0.00016438,2]
[366083199,1750055453598,-490.0,0.00016438,2]
[366083200,1750055453608,-395.73284872,0.00016438,2]
[366083201,1750055453617,-490.0,0.00016438,2]
[366083202,1750055453627,-2244.68,0.00016438,2]
[366083203,1750055453637,-206.07629,0.00016438,2]
[366083204,1750055453646,-1983.34,0.00016438,2]
[366083205,1750055453656,-206.07629,0.00016438,2]
[366083206,1750055453665,-9680.6,0.00016438,2]
[366083207,1750055453674,-610.73,0.00016438,2]
[366083208,1750055453683,-206.07629,0.00016438,2]
[366083209,1750055453692,-206.07629,0.00016438,2]
[366083210,1750055453704,-206.07629,0.00016438,2]
[366083211,1750055453715,-326.693364,0.00016438,2]
[366083212,1750055453724,-3736.56,0.00016438,2]
[366083213,1750055453733,-326.693364,0.00016438,2]
[366083214,1750055453744,-326.693364,0.00016438,2]
[366083215,1750055453755,-2288.36,0.00016438,2]
[366083216,1750055453766,-326.693364,0.00016438,2]
[366083217,1750055453779,-490.0,0.00016438,2]
[366083218,1750055453789,-326.693364,0.00016438,2]
[366083219,1750055453798,-4985.14,0.00016438,2]
[366083220,1750055453808,-326.693364,0.00016438,2]
[366083221,1750055453817,-326.693364,0.00016438,2]
[366083222,1750055453826,-326.693364,0.00016438,2]
[366083223,1750055453836,-326.693364,0.00016438,2]
[366083224,1750055453845,-490.0,0.00016438,2]
[366083225,1750055453855,-326.693364,0.00016438,2]
[366083226,1750055453865,-1312.4,0.00016438,2]
[366083227,1750055453875,-1733.62,0.00016438,2]
[366083228,1750055453884,-2664.35,0.00016438,2]
[366083229,1750055453894,-493.36340146,0.00016438,2]
[366083230,1750055453903,-490.0,0.00016438,2]
[366083231,1750055453913,-2353.37,0.00016438,2]
[366083232,1750055453922,-2455.36,0.00016438,2]
[366083233,1750055453931,-4040.14,0.00016438,2]
[366083234,1750055453941,-580.26,0.00016438,2]
[366083235,1750055453950,-275.95425094,0.00016438,2]
[366083236,1750055453959,-1538.51,0.00016438,2]
[366083237,1750055453969,-490.0,0.00016438,2]
[366083238,1750055453979,-490.0,0.00016438,2]
[366083239,1750055453988,-490.0,0.00016438,2]
[366083240,1750055454001,-490.0,0.00016438,2]
[366083241,1750055454011,-490.0,0.00016438,2]
[366083242,1750055454021,-192.78794492,0.00016438,2]
[366083243,1750055454031,-490.0,0.00016438,2]
[366083244,1750055454040,-490.0,0.00016438,2]
[366083245,1750055454050,-2363.72,0.00016438,2]
[366083246,1750055454061,-4709.63,0.00016438,2]
[366083247,1750055454070,-816.68,0.00016438,2]
[366083248,1750055454079,-1563.74,0.00016438,2]
[366083249,1750055454089,-1460.8,0.00016438,2]
[366083250,1750055454099,-1359.71,0.00016438,2]
[366083251,1750055454108,-7204.83,0.00016438,2]
[366083252,1750055454117,-1079.46,0.00016438,2]
[366083253,1750055454127,-870.8,0.00016438,2]
[366083254,1750055454136,-5558.55,0.00016438,2]
[366083255,1750055454146,-692.78,0.00016438,2]
[366083256,1750055454156,-1715.42,0.00016438,2]
[366083257,1750055454166,-474.120266,0.00016438,2]
[366083258,1750055454175,-474.120266,0.00016438,2]
[366083259,1750055454186,-490.0,0.00016438,2]
[366083260,1750055454195,-474.120266,0.00016438,2]
[366083261,1750055454205,-474.120266,0.00016438,2]
[366083262,1750055454215,-474.120266,0.00016438,2]
[366083263,1750055454225,-846.48,0.00016438,2]
[366083264,1750055454234,-3915.39,0.00016438,2]
[366083265,1750055454243,-474.120266,0.00016438,2]
[366083266,1750055454257,-1285.69,0.00016438,2]
[366083267,1750055454266,-500.0,0.00016438,2]
[366083268,1750055454275,-474.120266,0.00016438,2]
[366083269,1750055454285,-1136.57,0.00016438,2]
[366083270,1750055454295,-1933.52,0.00016438,2]
[366083271,1750055454305,-474.120266,0.00016438,2]
[366083272,1750055454314,-500.0,0.00016438,2]
[366083273,1750055454324,-500.0,0.00016438,2]
[366083274,1750055454333,-493.11991115,0.00016438,2]
[366083275,1750055454343,-500.0,0.00016438,2]
[366083276,1750055454352,-474.120266,0.00016438,2]
[366083277,1750055454361,-474.120266,0.00016438,2]
[366083278,1750055454371,-578.31,0.00016438,2]
[366083279,1750055454380,-490.0,0.00016438,2]
[366083280,1750055454390,-2245.72,0.00016438,2]
[366083281,1750055454400,-2772.88,0.00016438,2]
[366083282,1750055454410,-829.09,0.00016438,2]
[366083283,1750055454420,-490.0,0.00016438,2]
[366083284,1750055454430,-490.0,0.00016438,2]
[366083285,1750055454440,-958.12,0.00016438,2]
[366083286,1750055454449,-151.0,0.00016438,2]
[366083287,1750055454459,-847.27,0.00016438,2]
[366083288,1750055454469,-151.0,0.00016438,2]
[366083289,1750055454479,-151.0,0.00016438,2]
[366083290,1750055454489,-631.66,0.00016438,2]
[366083291,1750055454503,-2446.12,0.00016438,2]
[366083292,1750055454513,-151.0,0.00016438,2]
[366083293,1750055454523,-24460.02,0.00016438,2]
[366083294,1750055454533,-1307.42,0.00016438,2]
[366083295,1750055454543,-490.0,0.00016438,2]
[366083296,1750055454553,-2503.9,0.00016438,2]
[366083297,1750055454563,-367.42976773,0.00016438,2]
[366083298,1750055454572,-490.0,0.00016438,2]
[366083299,1750055454581,-1744.5,0.00016438,2]
[366083300,1750055454591,-1902.94,0.00016438,2]
[366083301,1750055454600,-490.0,0.00016438,2]
[366083302,1750055454610,-553.89259933,0.00016438,2]
[366083303,1750055454619,-490.0,0.00016438,2]
[366083304,1750055454629,-912.52,0.00016438,2]
[366083305,1750055454638,-491.96164906,0.00016438,2]
[366083306,1750055454648,-1825.92,0.00016438,2]
[366083307,1750055454657,-1803.18,0.00016438,2]
[366083308,1750055454666,-490.0,0.00016438,2]
[366083309,1750055454676,-490.0,0.00016438,2]
[366083310,1750055454685,-490.0,0.00016438,2]
[366083311,1750055454694,-490.0,0.00016438,2]
[366083312,1750055454705,-3197.15,0.00016438,2]
[366083313,1750055454716,-577.65,0.00016438,2]
[366083314,1750055454725,-3843.53,0.00016438,2]
[366083315,1750055454734,-1060.67,0.00016438,2]
[366083316,1750055454748,-1851.88,0.00016438,2]
[366083317,1750055454757,-1818.4,0.00016438,2]
[366083318,1750055454766,-1000.36,0.00016438,2]
[366083319,1750055454776,-490.0,0.00016438,2]
[366083320,1750055454786,-490.0,0.00016438,2]
[366083321,1750055454795,-10362.12,0.00016438,2]
[366083322,1750055454804,-1662.65,0.00016438,2]
[366083323,1750055454814,-502.58,0.00016438,2]
[366083324,1750055454823,-1846.88,0.00016438,2]
[366083325,1750055454833,-795.07,0.00016438,2]
[366083326,1750055454843,-1168.13,0.00016438,2]
[366083327,1750055454854,-490.0,0.00016438,2]
[366083328,1750055454864,-508.01,0.00016438,2]
[366083329,1750055454873,-151.0,0.00016438,2]
[366083330,1750055454883,-3330.34,0.00016438,2]
[366083331,1750055454893,-151.583738,0.00016438,2]
[366083332,1750055454903,-1381.48,0.00016438,2]
[366083333,1750055454912,-490.0,0.00016438,2]
[366083334,1750055454922,-7086.86,0.00016438,2]
[366083335,1750055454931,-809.27,0.00016438,2]
[366083336,1750055454940,-290.351966,0.00016438,2]
[366083337,1750055454950,-490.0,0.00016438,2]
[366083338,1750055454959,-508.08,0.00016438,2]
[366083339,1750055454968,-1325.88,0.00016438,2]
[366083340,1750055454978,-1349.24,0.00016438,2]
[366083341,1750055454987,-3451.5,0.00016438,2]
[366083342,1750055454997,-11315.95,0.00016438,2]
[366083343,1750055455006,-776.73,0.00016438,2]
[366083344,1750055455015,-2795.33,0.00016438,2]
[366083345,1750055455024,-1205.85,0.00016438,2]
[366083346,1750055455033,-490.0,0.00016438,2]
[366083347,1750055455043,-4598.97,0.00016438,2]
[366083348,1750055455052,-968.45,0.00016438,2]
[366083349,1750055455061,-2333.19,0.00016438,2]
[366083350,1750055455070,-1365.26,0.00016438,2]
[366083351,1750055455079,-1330.13,0.00016438,2]
[366083352,1750055455088,-758.84,0.00016438,2]
[366083353,1750055455097,-274.11030691,0.00016438,2]
[366083354,1750055455106,-1333.34,0.00016438,2]
[366083355,1750055455116,-1099.5,0.00016438,2]
[366083356,1750055455125,-498.92,0.00016438,2]
[366083357,1750055455134,-823.83,0.00016438,2]
[366083358,1750055455143,-490.0,0.00016438,2]
[366083359,1750055455152,-7255.65,0.00016438,2]
[366083360,1750055455162,-2050.85,0.00016438,2]
[366083361,1750055455171,-936.02,0.00016438,2]
[366083362,1750055455180,-810.85,0.00016438,2]
[366083363,1750055455189,-500.0,0.00016438,2]
[366083364,1750055455198,-500.0,0.00016438,2]
[366083365,1750055455207,-500.0,0.00016438,2]
[366083366,1750055455222,-500.0,0.00016438,2]
[366083367,1750055455231,-490.0,0.00016438,2]
[366083368,1750055455241,-1221.42,0.00016438,2]
[366083369,1750055455252,-1560.11,0.00016438,2]
[366083370,1750055455261,-383.1466226,0.00016438,2]
[366083371,1750055455270,-563.24,0.00016438,2]
[366083372,1750055455279,-151.0,0.00016438,2]
[366083373,1750055455288,-151.0,0.00016438,2]
[366083374,1750055455298,-3701.04,0.00016438,2]
[366083375,1750055455307,-151.0,0.00016438,2]
[366083376,1750055455316,-151.0,0.00016438,2]
[366083377,1750055455325,-151.0,0.00016438,2]
[366083378,1750055455334,-490.0,0.00016438,2]
[366083379,1750055455344,-1246.52,0.00016438,2]
[366083380,1750055455353,-151.0,0.00016438,2]
[366083381,1750055455363,-1401.43,0.00016438,2]
[366083382,1750055455372,-499.38743878,0.00016438,2]
[366083383,1750055455380,-151.0,0.00016438,2]
[366083384,1750055455390,-613.08,0.00016438,2]
[366083385,1750055455399,-490.0,0.00016438,2]
[366083386,1750055455408,-8512.66,0.00016438,2]
[366083387,1750055455417,-1019.71,0.00016438,2]
[366083388,1750055455426,-2257.13,0.00016438,2]
[366083389,1750055455435,-3033.26,0.00016438,2]
[366083390,1750055455445,-490.0,0.00016438,2]
[366083391,1750055455454,-3926.92,0.00016438,2]
[366083392,1750055455463,-490.0,0.00016438,2]
[366083393,1750055455472,-490.0,0.00016438,2]
[366083394,1750055455482,-490.0,0.00016438,2]
[366083395,1750055455491,-490.0,0.00016438,2]
[366083396,1750055455502,-871.09,0.00016438,2]
[366083397,1750055455511,-19002.41,0.00016438,2]
[366083398,1750055455520,-2595.15,0.00016438,2]
[366083399,1750055455530,-1283.32,0.00016438,2]
[366083400,1750055455539,-490.0,0.00016438,2]
[366083401,1750055455549,-151.0,0.00016438,2]
[366083402,1750055455559,-490.0,0.00016438,2]
[366083403,1750055455568,-151.0,0.00016438,2]
[366083404,1750055455577,-153.362934,0.00016438,2]
[366083405,1750055455586,-899.61,0.00016438,2]
[366083406,1750055455596,-4351.28,0.00016438,2]
[366083407,1750055455605,-718.18,0.00016438,2]
[366083408,1750055455620,-490.0,0.00016438,2]
[366083409,1750055455629,-1019.52,0.00016438,2]
[366083410,1750055455639,-1547.91,0.00016438,2]
[366083411,1750055455647,-4284.68,0.00016438,2]
[366083412,1750055455657,-979.5,0.00016438,2]
[366083413,1750055455667,-2077.8,0.00016438,2]
[366083414,1750055455676,-768.04,0.00016438,2]
[366083415,1750055455685,-490.0,0.00016438,2]
[366083416,1750055455694,-560.12,0.00016438,2]
[366083417,1750055455707,-490.54487417,0.00016438,2]
[366083418,1750055455717,-1242.12,0.00016438,2]
[366083419,1750055455728,-490.0,0.00016438,2]
[366083420,1750055455737,-4034.03,0.00016438,2]
[366083421,1750055455750,-19952.98,0.00016438,2]
[366083422,1750055455762,-151.0,0.00016438,2]
[366083423,1750055455775,-650.09,0.00016438,2]
[366083424,1750055455789,-25234.79,0.00016438,2]
[366083425,1750055455799,-490.0,0.00016438,2]
[366083426,1750055455811,-5037.71,0.00016438,2]
[366083427,1750055455821,-676.95,0.00016438,2]
[366083428,1750055455830,-1557.59,0.00016438,2]
[366083429,1750055455840,-347.693652,0.00016438,2]
[366083430,1750055455850,-659.58,0.00016438,2]
[366083431,1750055455859,-347.693652,0.00016438,2]
[366083432,1750055455869,-603.33,0.00016438,2]
[366083433,1750055455879,-1467.09,0.00016438,2]
[366083434,1750055455888,-347.693652,0.00016438,2]
[366083435,1750055455897,-1837.28,0.00016438,2]
[366083436,1750055455907,-347.693652,0.00016438,2]
[366083437,1750055455917,-347.693652,0.00016438,2]
[366083438,1750055455926,-596.96,0.00016438,2]
[366083439,1750055455936,-347.693652,0.00016438,2]
[366083440,1750055455945,-151.0,0.00016438,2]
[366083441,1750055455955,-347.693652,0.00016438,2]
[366083442,1750055455965,-347.693652,0.00016438,2]
[366083443,1750055455974,-347.693652,0.00016438,2]
[366083444,1750055455984,-347.693652,0.00016438,2]
[366083445,1750055455994,-347.693652,0.00016438,2]
[366083446,1750055456005,-347.693652,0.00016438,2]
[366083447,1750055456015,-490.0,0.00016438,2]
[366083448,1750055456025,-8748.53,0.00016438,2]
[366083449,1750055456034,-810.6,0.00016438,2]
[366083450,1750055456044,-1332.32,0.00016438,2]
[366083451,1750055456054,-2907.7,0.00016438,2]
[366083452,1750055456063,-1385.8,0.00016438,2]
[366083453,1750055456073,-1854.68,0.00016438,2]
[366083454,1750055456096,-176.882673,0.00016438,2]
[366083455,1750055456107,-176.882673,0.00016438,2]
[366083456,1750055456117,-490.0,0.00016438,2]
[366083457,1750055456127,-176.882673,0.00016438,2]
[366083458,1750055456137,-176.882673,0.00016438,2]
[366083459,1750055456147,-496.82974041,0.00016438,2]
[366083460,1750055456156,-446.00455581,0.00016438,2]
[366083461,1750055456166,-176.882673,0.00016438,2]
[366083462,1750055456179,-490.0,0.00016438,2]
[366083463,1750055456190,-1970.97,0.00016438,2]
[366083464,1750055456353,-4252.08,0.00016438,2]
[366083465,1750055456405,-663.19,0.00016438,2]
[366083466,1750055456416,-490.0,0.00016438,2]
[366083467,1750055456426,-490.0,0.00016438,2]
[366083468,1750055456436,-1198.0,0.00016438,2]
[366083469,1750055456446,-2863.78,0.00016438,2]
[366083470,1750055456455,-3366.74,0.00016438,2]
[366083471,1750055456465,-176.882673,0.00016438,2]
[366083472,1750055456475,-1621.17,0.00016438,2]
[366083473,1750055456485,-200.85778206,0.00016438,2]
[366083474,1750055456496,-176.882673,0.00016438,2]
[366083475,1750055456506,-747.16,0.00016438,2]
[366083476,1750055456516,-970.45,0.00016438,2]
[366083477,1750055456525,-176.882673,0.00016438,2]
[366083478,1750055456535,-153.00790364,0.00016438,2]
[366083479,1750055456545,-176.882673,0.00016438,2]
[366083480,1750055456555,-176.882673,0.00016438,2]
[366083481,1750055456564,-1673.27,0.00016438,2]
[366083482,1750055456573,-490.0,0.00016438,2]
[366083483,1750055456583,-1460.72,0.00016438,2]
[366083484,1750055456592,-490.0,0.00016438,2]
[366083485,1750055456602,-1540.23,0.00016438,2]
[366083486,1750055456612,-490.0,0.00016438,2]
[366083487,1750055456622,-1658.19,0.00016438,2]
[366083488,1750055456631,-6050.89,0.00016438,2]
[366083489,1750055456641,-887.27,0.00016438,2]
[366083490,1750055456650,-726.29,0.00016438,2]
[366083491,1750055456659,-1057.11,0.00016438,2]
[366083492,1750055456668,-3772.07,0.00016438,2]
[366083493,1750055456681,-490.0,0.00016438,2]
[366083494,1750055456690,-490.0,0.00016438,2]
[366083495,1750055456702,-490.0,0.00016438,2]
[366083496,1750055456712,-490.0,0.00016438,2]
[366083497,1750055456722,-491.05134449,0.00016438,2]
[366083498,1750055456732,-241.760706,0.00016438,2]
[366083499,1750055456743,-241.760706,0.00016438,2]
[366083500,1750055456753,-490.0,0.00016438,2]
[366083501,1750055456764,-501.75,0.00016438,2]
[366083502,1750055456774,-241.760706,0.00016438,2]
[366083503,1750055456784,-1271.29,0.00016438,2]
[366083504,1750055456794,-18090.43,0.00016438,2]
[366083505,1750055456804,-241.760706,0.00016438,2]
[366083506,1750055456813,-241.760706,0.00016438,2]
[366083507,1750055456823,-2335.27,0.00016438,2]
[366083508,1750055456833,-540.89,0.00016438,2]
[366083509,1750055456842,-1076.03,0.00016438,2]
[366083510,1750055456852,-546.25,0.00016438,2]
[366083511,1750055456861,-490.0,0.00016438,2]
[366083512,1750055456871,-490.0,0.00016438,2]
[366083513,1750055456880,-1079.01,0.00016438,2]
[366083514,1750055456890,-490.0,0.00016438,2]
[366083515,1750055456900,-304.83,0.00016438,2]
[366083516,1750055456910,-494.03,0.00016438,2]
[366083517,1750055456920,-150.0,0.00016438,2]
[366083518,1750055456929,-671.39830041,0.0001646,2]
[366083519,1750055456939,-151.0,0.00016472,2]
[366083520,1750055456949,-151.0,0.00016472,2]
[366083521,1750055456959,-151.0,0.00016472,2]
[366083522,1750055456968,-151.0,0.00016472,2]
[366083523,1750055456978,-171.515589,0.00016472,2]
[366083524,1750055456987,-689.240468,0.00016472,2]
[366083525,1750055456997,-443.525768,0.00016472,2]
[366083526,1750055457007,-443.525768,0.00016472,2]
[366083527,1750055457017,-151.0,0.00016472,2]
[366083528,1750055457027,-224.671791,0.00016472,2]
[366083529,1750055457042,-157.748097,0.00016472,2]
[366083530,1750055457051,-157.748097,0.00016472,2]
[366083531,1750055457061,-151.0,0.00016472,2]
[366083532,1750055457071,-151.0,0.00016472,2]
[366083533,1750055457081,-151.0,0.00016472,2]
[366083534,1750055457091,-474.120266,0.00016472,2]
[366083535,1750055457100,-474.120266,0.00016472,2]
[366083536,1750055457110,-241.760706,0.00016472,2]
[366083537,1750055457120,-191.13043838,0.00016473,2]
[366083538,1750055457130,-504.69929408,0.00016473,2]
[366083539,1750055457139,-500.0,0.00016473,2]
[366083540,1750055457150,-521.93008047,0.00016473,2]
[366083541,1750055457160,-500.0,0.00016473,2]
[366083542,1750055457169,-500.0,0.00016473,2]
[366083543,1750055457179,-500.0,0.00016473,2]
[366083544,1750055457188,-500.0,0.00016473,2]
[366083545,1750055457198,-500.0,0.00016473,2]